bitfinex-derivatives/quotes_BNBF0:USTF0_20250101
["timestamp","ask_amount","ask_price","bid_price","bid_amount"]
[1735691120619,0.26144263,704.55,703.26,0.28438984]
[1735691121621,0.2838651,704.56,703.26,0.28438984]
[1735691122222,1.06553091,704.52,703.26,0.28438984]
[1735691122825,1.48319683,704.51,703.26,0.28438984]
[1735691133029,2.54872774,704.51,703.26,0.28438984]
[1735691134929,1.06553091,704.5,703.26,0.28438984]
[1735691136026,1.06553091,704.49,703.26,0.28438984]
[1735691138934,1.06553091,704.5,703.26,0.28438984]
[1735691139838,1.06553091,704.49,703.26,1.33596438]
[1735691141137,1.06553091,704.5,703.26,0.28438984]
[1735691141931,1.06553091,704.47,703.28,1.05157454]
[1735691143038,1.48319683,704.51,703.27,1.05157454]
[1735691143039,1.06553091,704.46,703.27,1.05157454]
[1735691144036,1.06553091,704.46,703.26,0.28438984]
[1735691144037,1.06553091,704.45,703.33,1.05157454]
[1735691145331,1.06553091,704.45,703.26,0.28438984]
[1735691145332,1.06553091,704.5,703.26,0.28438984]
[1735691146236,2.54872774,704.51,703.26,0.28438984]
[1735691147639,1.06553091,704.48,703.26,0.28438984]
[1735691148739,1.06553091,704.47,703.26,0.28438984]
[1735691150037,1.06553091,704.48,703.26,0.28438984]
[1735691152236,1.06553091,704.47,703.26,0.28438984]
[1735691153538,1.06553091,704.48,703.26,0.28438984]
[1735691154736,1.48319683,704.51,703.29,1.05157454]
[1735691154737,1.06553091,704.42,703.29,1.05157454]
[1735691157040,1.06553091,704.42,703.26,0.28438984]
[1735691157041,1.06553091,704.44,703.31,1.05157454]
[1735691158146,1.06553091,704.45,703.33,1.05157454]
[1735691159448,1.06553091,704.5,703.36,1.05157454]
[1735691160646,1.48319683,704.51,703.31,1.05157454]
[1735691162845,1.48319683,704.51,703.26,1.33596438]
[1735691165152,1.48319683,704.51,703.26,0.28438984]
[1735691183867,0.2838651,704.56,703.26,0.28438984]
[1735691194670,0.2838651,704.56,703.29,1.05157454]
[1735691196672,0.2838651,704.56,703.26,0.28438984]
[1735691196673,0.2838651,704.56,703.31,1.05157454]
[1735691197170,0.26140577,704.55,703.31,1.05157454]
[1735691197575,0.2838651,704.56,703.31,1.05157454]
[1735691198374,1.06553091,704.52,703.32,1.05157454]
[1735691200574,1.06553091,704.53,703.32,1.05157454]
[1735691202270,1.06553091,704.53,703.26,0.28438984]
[1735691206277,1.06553091,704.54,703.26,0.28438984]
[1735691207480,1.06553091,704.53,703.26,0.28438984]
[1735691208278,1.06553091,704.52,703.28,1.05157454]
[1735691209883,1.06553091,704.51,703.28,1.05157454]
[1735691210783,1.06553091,704.52,703.3,1.05157454]
[1735691211182,0.26142318,704.51,703.3,1.05157454]
[1735691211384,1.06553091,704.52,703.3,1.05157454]
[1735691211684,1.06553091,704.47,703.38,1.05157454]
[1735691212384,1.06553091,704.46,703.36,1.05157454]
[1735691213380,1.48313888,704.47,703.26,0.28438984]
[1735691228298,0.26147528,704.46,703.26,0.28438984]
[1735691228996,0.26147654,704.45,703.26,0.28438984]
[1735691229295,0.26147654,704.44,703.26,0.28438984]
[1735691229490,0.26147654,704.43,703.26,0.28438984]
[1735691229794,2.54866979,704.47,703.26,0.28438984]
[1735691229995,0.26148018,704.46,703.26,0.28438984]
[1735691230896,0.28390943,704.45,703.26,0.28438984]
[1735691231098,0.26148018,704.44,703.26,0.28438984]
[1735691231397,1.06553091,704.37,703.26,0.28438984]
[1735691231597,0.26149047,704.36,703.26,0.28438984]
[1735691231999,1.48344446,704.35,703.26,0.28438984]
[1735691232197,0.26149047,704.34,703.26,0.28438984]
[1735691234200,1.48344446,704.35,703.26,0.28438984]
[1735691234201,0.26149319,704.33,703.26,0.28438984]
[1735691234398,0.26149319,704.32,703.26,0.28438984]
[1735691234593,1.48344446,704.35,703.26,0.28438984]
[1735691234594,0.26149319,704.31,703.26,0.28438984]
[1735691234799,1.48344446,704.35,703.26,0.28438984]
[1735691235002,0.26147908,704.34,703.26,0.28438984]
[1735691236002,1.48344446,704.35,703.26,0.28438984]
[1735691236399,0.26148021,704.34,703.26,0.28438984]
[1735691236797,1.48344446,704.35,703.26,0.28438984]
[1735691237403,0.26147796,704.34,703.26,0.28438984]
[1735691237603,0.26148629,704.33,703.26,0.28438984]
[1735691237805,1.48344446,704.35,703.26,0.28438984]
[1735691238006,0.26148593,704.34,703.26,0.28438984]
[1735691238698,1.48344446,704.35,703.26,0.28438984]
[1735691239304,0.26148648,704.34,703.26,0.28438984]
[1735691239600,0.2614861,704.33,703.26,0.28438984]
[1735691239806,1.48344446,704.35,703.26,0.28438984]
[1735691239998,0.26148654,704.34,703.26,0.28438984]
[1735691241699,1.48344446,704.35,703.26,0.28438984]
[1735691262520,0.26146794,704.34,703.26,0.28438984]
[1735691262721,1.06548974,704.31,703.3,1.05356845]
[1735691263014,0.26146794,704.3,703.3,1.05356845]
[1735691263214,1.06548974,704.31,703.3,1.05356845]
[1735691263419,0.26148622,704.3,703.3,1.05356845]
[1735691264122,1.06548974,704.27,703.26,1.33795829]
[1735691269624,1.06548974,704.26,703.26,1.33795829]
[1735691270624,1.06548974,704.34,703.26,0.28438984]
[1735691271929,2.5489342,704.35,703.26,0.28438984]
[1735691273027,1.48344446,704.35,703.26,0.28438984]
[1735691282732,2.5489342,704.35,703.26,0.28438984]
[1735691283532,1.06548974,704.33,703.26,0.28438984]
[1735691284634,1.06548974,704.31,703.26,0.28438984]
[1735691286736,1.48331273,704.43,703.26,0.28438984]
[1735691289737,0.28390943,704.45,703.26,0.28438984]
[1735691299635,0.26143524,704.44,703.26,0.28438984]
[1735691300338,1.48326005,704.43,703.26,0.28438984]
[1735691300538,0.26143524,704.42,703.26,0.28438984]
[1735691300743,0.26143524,704.42,703.26,1.33795829]
[1735691301642,1.48326005,704.43,703.26,1.33795829]
[1735691301942,1.48326005,704.43,703.26,0.28438984]
[1735691317351,1.48326005,704.43,703.29,1.05356845]
[1735691318356,0.28390943,704.45,703.29,1.05356845]
[1735691318556,0.28390943,704.45,703.31,1.05356845]
[1735691319459,0.28390943,704.45,703.33,1.05356845]
[1735691320358,1.34939917,704.45,703.36,1.05356845]
[1735691321151,0.26143335,704.44,703.36,1.05356845]
[1735691321358,1.34939917,704.45,703.36,1.05356845]
[1735691321557,1.06548974,704.44,703.38,1.05356845]
[1735691322259,0.28390943,704.45,703.28,1.05356845]
[1735691323360,0.28390943,704.45,703.27,1.05356845]
[1735691325454,0.28390943,704.45,703.26,1.33795829]
[1735691326359,0.28390943,704.45,703.27,1.05356845]
[1735691327460,0.28390943,704.45,703.26,0.28438984]
[1735691327461,0.28390943,704.45,703.28,1.05356845]
[1735691328261,0.28390943,704.45,703.29,1.05356845]
[1735691329162,0.28390943,704.45,703.26,1.33795829]
[1735691330366,0.28390943,704.45,703.27,1.05356845]
[1735691331768,0.28390943,704.45,703.26,0.28438984]
[1735691331769,0.28390943,704.45,703.26,1.33795829]
[1735691332668,1.06548974,704.44,703.34,1.05356845]
[1735691333770,1.06548974,704.43,703.34,1.05356845]
[1735691335670,1.06548974,704.43,703.26,0.28438984]
[1735691335671,1.06548974,704.42,703.35,1.05356845]
[1735691336671,1.06548974,704.42,703.26,0.28438984]
[1735691336672,1.06548974,704.41,703.34,1.05356845]
[1735691337671,1.06548974,704.43,703.36,1.05356845]
[1735691338668,1.06548974,704.38,703.44,1.05356845]
[1735691339469,1.06548974,704.41,703.46,1.05356845]
[1735691340068,1.06548974,704.41,703.45,1.05356845]
[1735691342376,0.28390943,704.45,703.33,1.05356845]
[1735691343275,0.28390943,704.45,703.34,1.05356845]
[1735691346379,0.28390943,704.45,703.32,1.05356845]
[1735691348680,0.28390943,704.45,703.35,1.05356845]
[1735691349580,0.28390943,704.45,703.32,1.05356845]
[1735691351482,0.28390943,704.45,703.26,0.28438984]
[1735691351483,0.28390943,704.45,703.31,1.05356845]
[1735691352382,0.28390943,704.45,703.37,1.05356845]
[1735691353480,0.28390943,704.45,703.36,1.05356845]
[1735691353679,1.48292295,704.66,703.36,1.05356845]
[1735691353984,1.48292295,704.66,703.37,0.28434536]
[1735691354779,1.48292295,704.66,703.54,1.05356845]
[1735691355680,1.48292295,704.66,703.45,1.05356845]
[1735691356783,1.48292295,704.66,703.47,1.05356845]
[1735691357584,1.06548974,704.84,703.47,1.05356845]
[1735691357783,0.26132233,704.83,703.47,1.05356845]
[1735691357987,0.26132233,704.83,703.4,1.05356845]
[1735691358286,0.26132233,704.82,703.4,1.05356845]
[1735691358485,1.4826597,704.85,703.4,1.05356845]
[1735691358682,1.4826597,704.85,703.41,0.28432919]
[1735691358884,0.26130213,704.84,703.41,0.28432919]
[1735691359187,1.4826597,704.85,703.46,1.05356845]
[1735691359484,1.4826597,704.85,703.47,0.28430494]
[1735691360080,1.4826597,704.85,703.48,1.05356845]
[1735691360284,1.4826597,704.85,703.49,0.28429686]
[1735691361284,1.4826597,704.85,703.51,1.05356845]
[1735691361489,1.06548974,705.13,703.52,0.28428473]
[1735691361689,1.48239128,704.91,703.52,0.28428473]
[1735691362090,0.28363966,705.12,703.52,0.28428473]
[1735691362288,1.48235971,704.91,703.52,0.28428473]
[1735691362590,0.28363966,705.12,703.52,0.28428473]
[1735691362889,0.26127454,705.11,703.52,0.28428473]
[1735691363185,0.2836477,705.1,703.52,0.28428473]
[1735691363385,0.26127454,705.09,703.52,0.28428473]
[1735691363589,0.28365575,705.08,703.52,0.28428473]
[1735691363790,0.26127454,705.07,703.52,0.28428473]
[1735691363993,0.2836638,705.06,703.52,0.28428473]
[1735691364191,0.26127454,705.05,703.52,0.28428473]
[1735691364391,0.28367184,705.04,703.52,0.28428473]
[1735691369698,0.26127467,705.03,703.52,0.28428473]
[1735691369893,0.54495054,705.03,703.52,0.28428473]
[1735691370093,0.28367587,705.03,703.52,0.28428473]
[1735691371599,0.26127016,705.02,703.52,0.28428473]
[1735691373007,0.5225482,705.01,703.52,0.28428473]
[1735691373200,0.2612752,705.0,703.52,0.28428473]
[1735691373405,0.2612752,704.99,703.52,0.28428473]
[1735691373599,0.2612752,704.98,703.52,0.28428473]
[1735691373801,0.2612752,704.97,703.52,0.28428473]
[1735691374005,0.2612752,704.96,703.52,0.28428473]
[1735691375408,1.48241759,704.97,703.52,0.28428473]
[1735691375602,0.26127257,704.96,703.52,0.28428473]
[1735691376307,0.26127765,704.95,703.52,0.28428473]
[1735691376603,1.48241759,704.97,703.52,0.28428473]
[1735691377003,0.26127835,704.96,703.52,0.28428473]
[1735691377508,1.48241759,704.97,703.52,0.28428473]
[1735691377710,0.26127747,704.96,703.52,0.28428473]
[1735691377910,1.48241759,704.97,703.52,0.28428473]
[1735691378110,0.26127972,704.96,703.52,0.28428473]
[1735691378504,1.48241759,704.97,703.52,0.28428473]
[1735691382212,0.2612721,704.96,703.52,0.28428473]
[1735691382411,1.48241759,704.97,703.52,0.28428473]
[1735691393825,1.48241759,704.97,703.53,1.05356845]
[1735691394024,1.48241759,704.97,703.54,0.28427665]
[1735691394728,1.48241759,704.97,703.72,1.05356845]
[1735691395823,1.48241759,704.97,703.71,1.05356845]
[1735691396820,1.48241759,704.97,703.76,1.05356845]
[1735691397825,1.48241759,704.97,703.54,0.28427665]
[1735691397826,1.06548974,704.96,703.78,1.05356845]
[1735691398925,1.06548974,704.94,703.78,1.05356845]
[1735691400023,1.06548974,704.92,703.76,1.05356845]
[1735691401025,1.48241759,704.97,703.54,0.28427665]
[1735691403432,1.48241759,704.97,703.54,1.3378451]
[1735691405034,1.48241759,704.97,703.55,1.05356845]
[1735691405229,1.48241759,704.97,703.56,0.28426857]
[1735691408629,1.48241759,704.97,703.56,1.33783702]
[1735691410036,1.48241759,704.97,703.56,0.28426857]
[1735691411036,1.48241759,704.97,703.68,1.05356845]
[1735691411737,1.48241759,704.97,703.62,1.05356845]
[1735691411937,1.48241759,704.97,703.63,0.28424029]
[1735691413037,1.48241759,704.97,703.66,1.05356845]
[1735691414237,1.48241759,704.97,703.65,1.05356845]
[1735691414438,1.48241759,704.97,703.65,1.33780066]
[1735691415242,1.48241759,704.97,703.66,1.05356845]
[1735691416337,1.48241759,704.97,703.69,1.05356845]
[1735691417444,1.48241759,704.97,703.7,1.05356845]
[1735691419640,1.48241759,704.97,703.71,1.05356845]
[1735691420449,1.48241759,704.97,703.66,1.05356845]
[1735691421546,1.48241759,704.97,703.7,1.05356845]
[1735691422943,1.48241759,704.97,703.65,1.33780066]
[1735691425147,1.48241759,704.97,703.66,1.05356845]
[1735691426049,2.54790733,704.97,703.81,1.05356845]
[1735691427247,1.48241759,704.97,703.79,1.05356845]
[1735691428248,1.06548974,704.92,703.88,1.05356845]
[1735691429151,1.06548974,704.93,703.88,1.05356845]
[1735691430446,1.06548974,704.94,703.86,1.05356845]
[1735691431749,1.48241759,704.97,703.8,1.05356845]
[1735691432952,1.48241759,704.97,703.82,1.05356845]
[1735691434153,1.48241759,704.97,703.83,1.05356845]
[1735691434952,1.34916561,705.03,703.83,1.05356845]
[1735691435951,1.34916561,705.03,703.65,0.28423221]
[1735691435952,0.28367587,705.03,703.86,1.05356845]
[1735691436954,0.28367587,705.03,703.96,1.05356845]
[1735691438154,0.28367587,705.03,703.97,1.05356845]
[1735691439056,0.28367587,705.03,703.96,1.05356845]
[1735691439954,0.28367587,705.03,703.63,1.05356845]
[1735691440555,0.28367587,705.03,703.61,1.05356845]
[1735691441751,0.28367587,705.03,703.66,1.05356845]
[1735691441950,0.28367587,705.03,703.68,0.2842201]
[1735691443353,1.06548974,705.58,703.68,0.2842201]
[1735691443561,1.48172328,705.3,703.68,0.2842201]
[1735691443857,0.28345876,705.57,703.68,0.2842201]
[1735691444056,1.48167597,705.3,703.68,0.2842201]
[1735691444259,0.28345876,705.57,703.68,0.2842201]
[1735691444451,1.48167597,705.3,703.68,0.2842201]
[1735691444857,0.28345876,705.57,703.68,0.2842201]
[1735691445057,1.48169174,705.3,703.81,1.05356845]
[1735691445258,1.06548974,705.51,703.82,0.28416356]
[1735691445558,0.54462561,705.5,703.82,0.28416356]
[1735691445752,0.26113873,705.49,703.82,0.28416356]
[1735691446556,1.48151302,705.48,703.82,0.28416356]
[1735691446760,0.28349894,705.47,703.82,0.28416356]
[1735691446957,0.26113802,705.46,703.82,0.28416356]
[1735691447162,0.28350698,705.45,703.82,0.28416356]
[1735691447364,0.26113802,705.44,703.82,0.28416356]
[1735691447557,0.54465295,705.43,703.82,0.28416356]
[1735691447762,0.54465697,705.42,703.82,0.28416356]
[1735691447960,0.28351903,705.42,703.82,0.28416356]
[1735691463576,0.28351903,705.42,703.82,1.33773201]
[1735691466177,0.28351903,705.42,703.85,1.05356845]
[1735691467175,0.28351903,705.42,703.86,0.28414741]
[1735691467374,0.28351903,705.42,703.91,1.05356845]
[1735691467574,0.28351903,705.42,703.92,0.28412319]
[1735691468777,0.28351903,705.42,703.94,1.05356845]
[1735691468974,0.28351903,705.42,703.95,0.28411108]
[1735691469881,0.28351903,705.42,704.0,1.05356845]
[1735691470981,0.28351903,705.42,703.95,0.28411108]
[1735691473380,0.28351903,705.42,703.99,1.05356845]
[1735691473580,0.28351903,705.42,704.0,0.2840909]
[1735691475682,0.28351903,705.42,704.01,1.05356845]
[1735691477886,0.28351903,705.42,704.0,0.2840909]
[1735691481190,0.28351903,705.42,704.02,1.05356845]
[1735691481384,0.28351903,705.42,704.03,0.2840788]
[1735691485492,1.76493219,705.42,704.03,0.2840788]
[1735691490198,0.28351903,705.42,704.03,0.2840788]
[1735691490996,0.28351903,705.42,704.11,1.05356845]
[1735691491695,1.48113994,705.76,704.11,1.05356845]
[1735691492597,1.48113994,705.76,704.15,1.05356845]
[1735691493697,1.48113994,705.76,704.17,0.28402232]
[1735691502702,1.76452239,705.76,704.17,0.28402232]
[1735691508714,0.28338646,705.75,704.17,0.28402232]
[1735691510211,0.26103404,705.74,704.17,0.28402232]
[1735691511413,0.28338646,705.75,704.17,0.28402232]
[1735691511713,0.26107319,705.74,704.17,0.28402232]
[1735691512210,0.28339449,705.73,704.17,0.28402232]
[1735691512410,0.26107319,705.72,704.17,0.28402232]
[1735691514113,0.26106992,705.71,704.17,0.28402232]
[1735691514313,0.26106992,705.7,704.17,0.28402232]
[1735691514712,0.28341056,705.69,704.17,0.28402232]
[1735691515014,0.26106992,705.68,704.17,0.28402232]
[1735691515416,1.74227815,705.68,704.17,0.28402232]
[1735691515608,0.26106992,705.67,704.17,0.28402232]
[1735691516215,0.28342261,705.66,704.17,0.28402232]
[1735691516416,0.26106992,705.65,704.17,0.28402232]
[1735691516715,0.26106952,705.64,704.17,0.28402232]
[1735691517016,0.54450418,705.63,704.17,0.28402232]
[1735691517211,0.26106952,705.62,704.17,0.28402232]
[1735691517412,0.26106801,705.61,704.17,0.28402232]
[1735691517618,0.28343466,705.63,704.17,0.28402232]
[1735691517913,0.26106503,705.62,704.17,0.28402232]
[1735691518313,0.28344269,705.61,704.17,0.28402232]
[1735691519918,0.2610739,705.6,704.17,0.28402232]
[1735691520521,0.28345072,705.59,704.17,0.28402232]
[1735691520815,0.2610739,705.58,704.17,0.28402232]
[1735691521022,0.28345876,705.57,704.17,0.28402232]
[1735691521617,0.26106744,705.56,704.17,0.28402232]
[1735691523316,0.28345876,705.57,704.17,0.28402232]
[1735691528719,0.28345876,705.57,704.26,1.05356845]
[1735691529727,0.28345876,705.57,704.29,1.05356845]
[1735691531119,0.28345876,705.57,704.34,1.05356845]
[1735691531724,0.28345876,705.57,704.35,0.28394974]
[1735691533929,0.28345876,705.57,704.35,1.33751819]
[1735691535030,0.28345876,705.57,704.37,1.05356845]
[1735691535227,0.28345876,705.57,704.38,0.28393764]
[1735691535729,1.48089833,705.78,704.38,0.28393764]
[1735691537427,1.06548974,706.3,704.38,0.28393764]
[1735691537624,1.48052556,705.9,704.38,0.28393764]
[1735691537929,1.06548974,706.3,704.38,0.28393764]
[1735691538129,1.48054131,705.89,704.38,0.28393764]
[1735691538329,0.28317381,706.28,704.38,0.28393764]
[1735691538531,0.26092576,706.27,704.38,0.28393764]
[1735691539329,0.26092239,706.26,704.38,0.28393764]
[1735691539529,0.26092239,706.25,704.38,0.28393764]
[1735691540030,0.26093239,706.24,704.38,0.28393764]
[1735691540224,0.26093239,706.23,704.38,0.28393764]
[1735691540529,1.48034712,706.26,704.38,0.28393764]
[1735691540530,0.28320188,706.21,704.38,0.28393764]
[1735691540724,0.26093239,706.2,704.38,0.28393764]
[1735691543725,0.28321391,706.18,704.38,0.28393764]
[1735691543932,0.26093239,706.17,704.38,0.28393764]
[1735691544128,0.28322594,706.15,704.38,0.28393764]
[1735691544329,0.26093239,706.14,704.38,0.28393764]
[1735691544630,0.28323396,706.13,704.38,0.28393764]
[1735691544930,0.26093239,706.12,704.38,0.28393764]
[1735691545932,0.28323396,706.13,704.38,0.28393764]
[1735691546531,0.26093226,706.12,704.38,0.28393764]
[1735691547329,0.28324198,706.11,704.38,0.28393764]
[1735691547626,0.26093226,706.1,704.38,0.28393764]
[1735691547829,0.26093146,706.1,704.38,0.28393764]
[1735691549730,0.26093367,706.09,704.38,0.28393764]
[1735691549932,1.48041534,706.09,704.38,0.28393764]
[1735691550126,0.26093367,706.08,704.38,0.28393764]
[1735691551032,0.28325803,706.07,704.38,0.28393764]
[1735691551225,0.26093367,706.06,704.38,0.28393764]
[1735691551424,0.28326605,706.05,704.38,0.28393764]
[1735691551628,0.26093367,706.04,704.38,0.28393764]
[1735691551835,0.28327408,706.03,704.38,0.28393764]
[1735691552132,0.26093367,706.02,704.38,0.28393764]
[1735691552333,0.26092896,706.01,704.38,0.28393764]
[1735691552526,0.26092896,706.02,704.38,0.28393764]
[1735691552729,0.26092896,706.01,704.38,0.28393764]
[1735691552932,0.26092896,706.0,704.38,0.28393764]
[1735691553127,0.26092896,705.99,704.38,0.28393764]
[1735691553332,0.26092896,705.98,704.38,0.28393764]
[1735691553534,0.26092896,705.97,704.38,0.28393764]
[1735691553728,0.26092896,705.96,704.38,0.28393764]
[1735691553934,0.26092896,705.95,704.38,0.28393764]
[1735691554129,0.26092896,705.94,704.38,0.28393764]
[1735691554334,0.28327408,706.03,704.38,0.28393764]
[1735691554531,0.28327408,706.03,704.44,1.05356845]
[1735691555336,0.28327408,706.03,704.38,0.28393764]
[1735691561239,0.28327408,706.03,704.41,1.05356845]
[1735691562539,0.28327408,706.03,704.43,1.05356845]
[1735691564140,0.28327408,706.03,704.44,0.28391346]
[1735691564536,0.28327408,706.03,704.45,1.05356845]
[1735691565035,0.28327408,706.03,704.46,0.2839054]
[1735691576146,0.28327408,706.03,704.56,1.05356845]
[1735691576945,0.28327408,706.03,704.61,1.05356845]
[1735691577648,0.26090303,706.02,704.61,1.05356845]
[1735691577842,0.28327408,706.03,704.61,1.05356845]
[1735691578243,1.48016347,706.02,704.61,1.05356845]
[1735691578448,0.26090274,706.01,704.61,1.05356845]
[1735691579048,1.06548974,706.01,704.6,1.05356845]
[1735691580053,0.26090895,706.0,704.6,1.05356845]
[1735691580253,1.32639869,706.0,704.6,1.05356845]
[1735691580454,0.26090895,705.99,704.6,1.05356845]
[1735691581553,1.06548974,705.94,704.7,1.05356845]
[1735691581852,0.26090895,705.93,704.7,1.05356845]
[1735691582553,1.06548974,705.94,704.7,1.05356845]
[1735691582854,1.34880394,705.93,704.71,1.05356845]
[1735691583849,0.28331822,705.92,704.46,1.33747385]
[1735691585752,0.28331822,705.92,704.49,1.05356845]
[1735691586856,0.26093974,705.91,704.49,1.05356845]
[1735691587158,0.26093974,705.91,704.5,1.05356845]
[1735691588053,0.28331822,705.92,704.5,1.05356845]
[1735691588257,1.06548974,705.81,704.59,1.05356845]
[1735691589355,1.06548974,705.84,704.59,1.05356845]
[1735691589559,0.26094526,705.83,704.59,1.05356845]
[1735691590560,0.26094526,705.83,704.57,1.05356845]
[1735691591356,0.26094526,705.83,704.58,1.05356845]
[1735691591562,0.26094526,705.82,704.58,1.05356845]
[1735691591759,1.06548974,705.86,704.58,1.05356845]
[1735691591960,0.26094761,705.85,704.58,1.05356845]
[1735691592561,0.26094761,705.85,704.56,1.05356845]
[1735691593560,0.26094761,705.85,704.53,1.05356845]
[1735691593963,1.06548974,705.86,704.53,1.05356845]
[1735691594664,1.4803786,705.91,704.46,0.2839054]
[1735691594864,0.28332625,705.9,704.46,0.2839054]
[1735691604680,0.28332625,705.9,704.52,1.05356845]
[1735691604881,0.28332625,705.9,704.53,0.28387719]
[1735691615088,0.28332625,705.9,704.58,1.05356845]
[1735691615685,0.28332625,705.9,704.53,0.28387719]
[1735691615686,0.28332625,705.9,704.54,1.05356845]
[1735691616387,0.28332625,705.9,704.56,0.2838651]
[1735691632598,0.28332625,705.9,704.6,1.05356845]
[1735691633494,0.28332625,705.9,704.65,1.05356845]
[1735691634503,0.28332625,705.9,704.66,0.28382482]
[1735691634802,0.28332625,705.9,704.66,1.33739327]
[1735691635804,0.28332625,705.9,704.69,1.05356845]
[1735691637004,0.28332625,705.9,704.71,1.05356845]
[1735691638407,0.28332625,705.9,704.66,1.33739327]
[1735691639408,0.28332625,705.9,704.66,0.28382482]
[1735691645412,0.28332625,705.9,704.84,1.05356845]
[1735691646512,0.28332625,705.9,704.99,1.05356845]
[1735691647412,0.28332625,705.9,704.98,1.05356845]
[1735691647910,1.06548974,706.18,704.98,1.05356845]
[1735691648311,0.26081427,706.17,704.98,1.05356845]
[1735691648510,0.26081427,706.17,704.96,1.05356845]
[1735691648812,1.06548974,706.18,704.96,1.05356845]
[1735691649609,2.54519692,706.19,704.9,1.05356845]
[1735691650506,1.47970718,706.19,704.83,1.05356845]
[1735691650904,1.47970718,706.19,704.84,0.28375234]
[1735691655018,0.28321391,706.18,704.84,0.28375234]
[1735691664925,0.26085109,706.17,704.84,0.28375234]
[1735691665119,0.28321391,706.18,704.84,0.28375234]
[1735691665321,0.26083226,706.17,704.84,0.28375234]
[1735691665926,0.26083226,706.17,704.84,1.33732079]
[1735691666725,0.2608359,706.16,704.84,1.33732079]
[1735691667024,0.2608359,706.15,704.84,0.28375234]
[1735691667224,0.2608359,706.14,704.84,0.28375234]
[1735691667524,1.06548974,706.17,704.84,0.28375234]
[1735691667724,0.26083714,706.16,704.84,0.28375234]
[1735691668326,1.32632688,706.16,704.84,1.33732079]
[1735691668528,0.26083714,706.15,704.84,1.33732079]
[1735691669327,0.26084209,706.14,704.84,1.33732079]
[1735691669527,0.26084209,706.13,704.85,1.05356845]
[1735691669727,1.06548974,706.17,704.85,1.05356845]
[1735691669926,0.2608416,706.16,704.85,1.05356845]
[1735691670829,1.06548974,706.13,704.84,0.28375234]
[1735691671030,0.2608416,706.12,704.84,0.28375234]
[1735691671724,1.47984351,706.11,704.84,0.28375234]
[1735691671931,0.2608416,706.1,704.84,0.28375234]
[1735691672428,1.47984351,706.11,704.84,0.28375234]
[1735691672628,0.26084151,706.1,704.84,0.28375234]
[1735691673030,0.26084151,706.1,704.85,1.05356845]
[1735691674333,0.26084151,706.1,704.87,1.05356845]
[1735691674534,0.26084244,706.09,704.87,1.05356845]
[1735691674731,0.26084244,706.08,704.87,1.05356845]
[1735691674930,0.26084244,706.07,704.87,1.05356845]
[1735691675134,0.26084244,706.06,704.87,1.05356845]
[1735691675334,0.26084244,706.05,704.87,1.05356845]
[1735691675631,1.06548974,706.07,704.93,1.05356845]
[1735691676029,0.26083967,706.06,704.93,1.05356845]
[1735691676533,0.26083967,706.06,704.84,1.33732079]
[1735691676534,1.32632941,706.06,704.94,1.05356845]
[1735691676733,1.06548974,706.06,704.94,1.05356845]
[1735691676929,0.26084341,706.05,704.94,1.05356845]
[1735691677229,1.06548974,706.06,704.94,1.05356845]
[1735691678033,1.06548974,706.06,704.96,1.05356845]
[1735691678232,0.26083664,706.05,704.96,1.05356845]
[1735691678434,1.06548974,706.06,704.96,1.05356845]
[1735691679139,0.26083613,706.05,704.97,1.05356845]
[1735691679333,1.06548974,706.07,704.97,1.05356845]
[1735691679534,0.26083705,706.06,704.97,1.05356845]
[1735691679733,1.06548974,706.06,704.97,1.05356845]
[1735691680737,2.54533325,706.11,704.98,1.05356845]
[1735691680938,0.26083092,706.1,704.98,1.05356845]
[1735691682035,1.32632066,706.1,705.0,1.05356845]
[1735691682336,0.26083092,706.09,705.0,1.05356845]
[1735691682532,1.06548974,706.1,705.0,1.05356845]
[1735691682736,0.26082512,706.09,705.0,1.05356845]
[1735691683237,1.32631486,706.09,705.0,1.05356845]
[1735691683434,1.06548974,706.09,705.0,1.05356845]
[1735691684139,1.06548974,706.08,705.0,1.05356845]
[1735691684339,0.26083275,706.07,705.0,1.05356845]
[1735691685541,1.06548974,706.05,704.97,1.05356845]
[1735691686444,1.06548974,706.08,704.93,1.05356845]
[1735691687645,1.47984351,706.11,704.84,0.28375234]
[1735691688240,0.28324599,706.1,704.84,0.28375234]
[1735691692853,0.2691014,706.1,704.84,0.28375234]
[1735691693649,0.2691014,706.1,704.84,0.27771523]
[1735691696655,0.26088208,706.09,704.84,0.27771523]
[1735691697557,1.06548974,706.06,704.84,0.27771523]
[1735691697754,0.26088208,706.05,704.84,0.27771523]
[1735691698359,0.26088208,706.04,704.84,0.27771523]
[1735691698559,0.26088208,706.03,704.84,0.27771523]
[1735691698861,1.32637182,706.02,704.84,0.27771523]
[1735691699060,0.26088208,706.01,704.84,0.27771523]
[1735691700760,0.26088178,706.0,704.84,0.27771523]
[1735691701062,1.48002708,706.02,704.84,0.27771523]
[1735691701063,0.26088178,705.99,704.84,0.27771523]
[1735691701362,1.48002708,706.02,704.84,0.27771523]
[1735691701363,0.26088178,705.98,704.84,0.27771523]
[1735691701661,1.48002708,706.02,704.84,0.27771523]
[1735691702161,1.06548974,706.01,704.84,0.27771523]
[1735691703565,1.48002708,706.02,704.84,0.27771523]
[1735691707563,0.2832821,706.01,704.84,0.27771523]
[1735691728883,0.2832821,706.01,704.93,1.05356845]